bitfinex-derivatives/quotes_SOLF0:USTF0_20250516
["timestamp","ask_amount","ask_price","bid_price","bid_amount"]
[1747354385206,67.2034,170.02,169.92,63.42]
[1747354385497,63.42,170.01,169.92,73.38708857]
[1747354385699,63.42,170.0,169.98,5.8816]
[1747354385901,63.42,170.0,169.93,3.8639]
[1747354386099,63.42,170.01,169.96,63.42]
[1747354386303,63.42,170.02,169.99,5.8813]
[1747354386607,63.42,170.02,169.96,63.42]
[1747354386793,5.8809,170.01,169.96,69.3023]
[1747354387098,63.42,170.05,169.96,63.42]
[1747354387299,63.42,170.02,169.96,63.42]
[1747354387898,5.8815,169.99,169.96,63.42]
[1747354388404,63.42,170.02,169.96,63.42]
[1747354388699,5.8812,170.0,169.96,63.42]
[1747354389004,63.42,170.02,169.96,63.42]
[1747354389198,69.2993,170.05,169.96,73.38708857]
[1747354389401,63.4,170.06,169.96,73.38708857]
[1747354389893,63.4,170.07,170.0,9.96708857]
[1747354390096,63.4,170.13,170.01,63.4]
[1747354390397,63.4,170.13,170.01,67.3733]
[1747354390591,5.8772,170.11,170.01,69.2307]
[1747354390904,63.4,170.12,170.01,69.2307]
[1747354392194,63.4,170.12,170.01,67.3733]
[1747354392391,63.4,170.12,170.01,63.4]
[1747354392899,63.4,170.12,169.97,63.4]
[1747354393302,5.8803,170.02,169.97,63.4]
[1747354393504,69.2603,170.02,169.97,63.4]
[1747354393804,63.38,170.02,169.97,63.4]
[1747354394002,5.8806,170.01,169.97,63.4]
[1747354394303,63.38,170.02,169.97,63.4]
[1747354395101,5.8817,169.98,169.97,63.4]
[1747354397002,63.38,169.98,169.93,63.38]
[1747354397605,5.883,169.94,169.93,63.38]
[1747354397997,63.38,169.98,169.86,2.0137]
[1747354397998,63.38,169.98,169.89,63.38]
[1747354398199,126.78,169.98,169.89,63.38]
[1747354398707,5.9352,169.97,169.89,63.38]
[1747354398908,5.9352,169.97,169.86,65.4137]
[1747354399102,5.9352,169.97,169.86,63.4]
[1747354399305,5.8855,169.87,169.86,63.4]
[1747354399807,63.38,169.89,169.86,63.4]
[1747354401401,69.2638,169.92,169.86,69.2858]
[1747354401598,69.2638,169.92,169.86,63.4]
[1747354401799,63.38,169.92,169.86,63.4]
[1747354403806,3.911,169.97,169.86,63.4]
[1747354404007,5.8825,169.96,169.91,5.8839]
[1747354404210,1.964,169.97,169.91,63.4]
[1747354404610,5.8835,169.93,169.91,63.4]
[1747354404907,5.8835,169.93,169.87,9.6484]
[1747354404908,5.8835,169.93,169.88,63.4]
[1747354405108,1.964,169.97,169.88,63.4]
[1747354405309,63.38,169.96,169.88,63.4]
[1747354405609,5.8828,169.95,169.89,5.8844]
[1747354406009,5.8828,169.95,169.88,63.4]
[1747354406608,5.8828,169.95,169.9,5.8841]
[1747354406811,65.4011,170.01,169.91,9.96708857]
[1747354407110,63.38,170.0,169.92,63.4]
[1747354407299,69.261,170.0,169.92,63.4]
[1747354407503,63.38,170.0,169.92,63.4]
[1747354407909,5.8821,169.97,169.92,69.2837]
[1747354408212,63.38,170.0,169.92,63.4]
[1747354408608,5.8826,169.96,169.92,63.4]
[1747354409117,63.38,170.0,169.92,63.4]
[1747354409410,5.8819,169.98,169.92,69.2837]
[1747354409615,63.38,170.0,169.92,69.2837]
[1747354409909,63.38,170.0,169.92,63.4]
[1747354410309,63.38,170.0,169.89,63.36]
[1747354410908,63.36,169.99,169.92,9.96708857]
[1747354411104,63.36,169.99,169.93,63.36]
[1747354411813,69.2416,169.99,169.93,69.2431]
[1747354412113,69.2416,169.99,169.93,63.36]
[1747354412515,5.8822,169.97,169.93,63.36]
[1747354412702,63.36,169.99,169.93,63.36]
[1747354413012,63.36,169.99,169.92,9.96708857]
[1747354413013,63.36,169.99,169.9,63.36]
[1747354413407,5.8826,169.96,169.9,63.36]
[1747354413612,63.36,169.99,169.9,63.36]
[1747354413817,63.36,169.99,169.92,9.96708857]
[1747354414005,63.36,169.99,169.95,5.8826]
[1747354414724,63.36,169.99,169.94,69.2429]
[1747354415114,63.36,170.0,169.94,69.2429]
[1747354415321,65.2106,170.03,169.94,63.36]
[1747354415609,63.36,170.02,169.94,63.36]
[1747354415814,63.36,170.02,169.97,5.8817]
[1747354416116,63.36,170.02,169.94,63.36]
[1747354416313,3.8895,170.05,169.94,63.36]
[1747354416514,63.36,170.04,169.94,63.36]
[1747354416714,63.36,170.04,169.95,1.947]
[1747354416914,63.36,170.04,169.97,5.8817]
[1747354417115,63.36,170.04,169.95,1.947]
[1747354417518,63.36,170.04,169.94,63.36]
[1747354418013,5.8823,169.97,169.94,63.36]
[1747354418413,63.34,169.99,169.91,63.36]
[1747354419611,5.883,169.95,169.91,63.36]
[1747354420117,5.8824,169.96,169.91,69.2441]
[1747354420417,63.34,169.99,169.91,63.36]
[1747354421217,5.8826,169.96,169.91,69.244]
[1747354421718,63.34,169.99,169.91,63.36]
[1747354421911,5.8825,169.96,169.91,63.36]
[1747354422116,63.34,169.99,169.91,63.36]
[1747354422517,63.36,169.98,169.88,11.91408857]
[1747354422719,63.36,169.98,169.88,63.36]
[1747354422916,3.7947,169.97,169.88,63.36]
[1747354423115,5.8838,169.92,169.88,63.36]
[1747354424117,63.34,169.93,169.84,518.22708857]
[1747354424314,63.34,169.93,169.85,63.36]
[1747354424824,65.1924,169.93,169.85,63.36]
[1747354426229,5.8841,169.91,169.85,69.2458]
[1747354426412,65.1924,169.93,169.85,69.2458]
[1747354426720,63.34,169.92,169.85,63.36]
[1747354427519,5.8851,169.89,169.85,63.36]
[1747354427719,63.34,169.92,169.85,63.36]
[1747354427918,5.8851,169.89,169.85,63.36]
[1747354428221,63.34,169.92,169.85,63.36]
[1747354429323,63.34,169.92,169.82,67.2907]
[1747354429925,63.34,169.92,169.82,63.36]
[1747354430924,5.8858,169.86,169.82,63.36]
[1747354431220,63.34,169.87,169.77,5.7924]
[1747354431422,5.8874,169.82,169.77,67.3296]
[1747354431621,65.3348,169.86,169.77,65.3625]
[1747354432025,5.8874,169.82,169.77,65.3625]
[1747354432320,65.3348,169.86,169.77,65.3625]
[1747354432527,65.3348,169.86,169.79,5.8879]
[1747354433221,63.38,169.9,169.77,65.3625]
[1747354433426,63.34,169.89,169.78,3.7131]
[1747354433726,63.34,169.89,169.8,9.96708857]
[1747354433926,63.34,169.89,169.81,63.38]
[1747354435319,63.34,169.89,169.78,67.0531]
[1747354435320,63.34,169.89,169.78,65.2478]
[1747354435520,63.34,169.89,169.78,71.136]
[1747354436027,63.34,169.89,169.79,5.8882]
[1747354436625,5.8864,169.85,169.79,5.8882]
[1747354436831,63.34,169.84,169.79,5.8882]
[1747354437225,69.2267,169.84,169.79,5.8882]
[1747354437525,63.34,169.84,169.78,71.1363]
[1747354437727,63.34,169.84,169.78,63.38]
[1747354438228,63.34,169.84,169.76,5.889]
[1747354438432,63.34,169.84,169.75,73.34708857]
[1747354439429,69.2268,169.84,169.79,5.8882]
[1747354439629,63.34,169.84,169.79,5.8882]
[1747354440225,63.34,169.84,169.75,73.34708857]
[1747354440426,67.1383,169.84,169.75,63.38]
[1747354440832,63.34,169.83,169.75,63.38]
[1747354441133,63.34,169.89,169.77,9.96708857]
[1747354441335,65.3543,169.93,169.81,9.96708857]
[1747354441629,63.34,169.92,169.82,63.34]
[1747354441827,5.8851,169.89,169.84,5.8864]
[1747354442032,65.3543,169.93,169.82,63.34]
[1747354442327,63.34,169.92,169.86,5.8855]
[1747354442530,63.34,169.92,169.82,63.34]
[1747354443127,67.1383,169.96,169.85,9.96708857]
[1747354443329,63.34,169.95,169.86,67.2213]
[1747354443533,5.8831,169.94,169.89,5.8847]
[1747354444030,5.8831,169.94,169.9,5.8843]
[1747354444228,5.8835,169.93,169.86,67.2213]
[1747354444430,63.34,169.95,169.86,130.5613]
[1747354444736,5.8837,169.93,169.88,5.8851]
[1747354445139,63.34,169.95,169.9,5.8843]
[1747354445428,63.34,169.99,169.9,63.34]
[1747354445634,63.32,170.03,169.93,5.8831]
[1747354445836,63.34,170.02,169.92,9.96708857]
[1747354446037,63.34,170.02,169.93,65.2767]
[1747354446335,63.34,170.02,169.94,5.8829]
[1747354446527,5.881,170.0,169.93,65.2767]
[1747354446821,5.881,170.0,169.94,1.998]
[1747354447435,5.881,170.0,169.95,5.8826]
[1747354447741,63.32,170.02,169.94,1.998]
[1747354449729,5.8809,170.01,169.96,5.8823]
[1747354449931,63.32,170.02,169.94,1.998]
[1747354450126,69.3052,170.07,169.94,65.298]
[1747354450326,63.3,170.06,169.97,5.8817]
[1747354450630,63.3,170.06,169.98,63.32]
[1747354450834,5.8803,170.02,169.98,63.32]
[1747354451130,63.3,170.04,169.98,63.32]
[1747354451635,63.3,170.06,170.0,5.8809]
[1747354452031,63.3,170.06,169.99,5.8813]
[1747354452237,63.3,170.06,169.98,63.32]
[1747354452734,5.8797,170.04,169.99,5.881]
[1747354452931,63.3,170.06,169.98,63.32]
[1747354453233,65.3155,170.07,169.98,63.32]
[1747354453439,63.28,170.08,169.98,126.6]
[1747354453639,63.28,170.08,170.0,9.96708857]
[1747354453942,5.8786,170.07,170.02,5.88]
[1747354454137,5.8786,170.07,170.02,69.18]
[1747354454438,5.8789,170.06,170.02,63.3]
[1747354455540,63.28,170.13,170.03,5.8799]
[1747354455731,63.26,170.12,170.02,63.3]
[1747354456737,5.8785,170.08,170.03,5.8799]
[1747354457043,63.26,170.12,170.03,5.8799]
[1747354457231,63.26,170.12,170.02,63.3]
[1747354457432,5.8784,170.08,170.02,65.2719]
[1747354457841,63.28,170.13,170.02,65.2719]
[1747354458037,5.8779,170.09,170.04,5.8793]
[1747354458438,63.24,170.13,170.02,128.5119]
[1747354458740,63.24,170.12,170.02,128.5119]
[1747354459041,5.8775,170.11,170.02,128.5119]
[1747354459435,63.24,170.13,170.02,128.5119]
[1747354459828,5.8776,170.1,170.05,5.879]
[1747354460033,5.8776,170.1,170.06,63.28]
[1747354460235,63.24,170.13,170.06,63.28]
[1747354460733,5.8774,170.11,170.06,69.1586]
[1747354461232,5.8776,170.1,170.06,63.28]
[1747354461931,63.24,170.13,170.02,65.2119]
[1747354462136,63.24,170.13,170.03,63.26]
[1747354463140,5.8788,170.07,170.03,63.26]
[1747354463344,63.22,170.08,170.03,63.26]
[1747354463534,63.22,170.08,170.0,63.26]
[1747354465145,69.0984,170.08,170.0,63.26]
[1747354465349,63.22,170.08,170.0,126.48]
[1747354466151,63.22,170.1,170.0,126.48]
[1747354466546,5.8785,170.07,170.02,5.88]
[1747354466749,63.22,170.1,170.02,5.88]
[1747354467152,5.8787,170.07,170.03,5.8798]
[1747354467450,63.22,170.1,170.03,5.8798]
[1747354467651,63.22,170.1,170.04,63.26]
[1747354467949,63.22,170.1,170.04,69.1395]
[1747354468256,5.8779,170.09,170.04,69.1395]
[1747354468444,63.2,170.12,170.06,5.8786]
[1747354468942,5.8778,170.1,170.06,5.8786]
[1747354469350,5.878,170.09,170.05,5.8791]
[1747354469547,63.2,170.12,170.04,63.26]
[1747354470250,5.8786,170.07,170.04,63.26]
[1747354470451,63.2,170.12,170.04,63.26]
[1747354470855,5.7256,170.15,170.05,63.2]
[1747354471149,68.9256,170.15,170.05,63.2]
[1747354471448,5.8766,170.13,170.08,5.878]
[1747354471653,5.8766,170.13,170.08,69.058]
[1747354472151,5.8766,170.13,170.09,5.8778]
[1747354472552,5.8762,170.14,170.09,5.8778]
[1747354473155,5.8766,170.13,170.09,5.8778]
[1747354473453,68.9056,170.15,170.09,5.8778]
[1747354473647,68.9056,170.15,170.1,5.8775]
[1747354474055,571.6,170.18,170.08,63.18]
[1747354474248,63.18,170.17,170.08,63.18]
[1747354474743,5.8751,170.17,170.1,6.99815249]
[1747354475756,5.8751,170.17,170.12,5.8768]
[1747354475955,5.8751,170.17,170.12,63.18]
[1747354476155,5.8755,170.16,170.12,63.18]
[1747354476353,63.18,170.18,170.12,63.18]
[1747354476754,5.876,170.15,170.12,63.18]
[1747354477247,63.18,170.18,170.12,63.18]
[1747354477652,5.8755,170.16,170.12,63.18]
[1747354477852,63.18,170.18,170.12,63.18]
[1747354478758,5.8761,170.15,170.12,63.18]
[1747354479259,63.18,170.18,170.12,63.18]
[1747354479652,5.8759,170.15,170.12,63.18]
[1747354480258,63.18,170.18,170.12,69.0567]
[1747354480556,5.9728,170.2,170.12,69.0567]
[1747354480557,5.9728,170.2,170.12,63.18]
[1747354480853,5.8751,170.17,170.12,69.0566]
[1747354481062,5.8751,170.17,170.12,63.18]
[1747354481253,5.8748,170.18,170.13,5.8764]
[1747354481558,5.8748,170.18,170.12,63.18]
[1747354481759,69.1128,170.2,170.12,63.18]
[1747354482555,5.8747,170.19,170.14,5.8761]
[1747354482953,63.16,170.24,170.12,63.18]
[1747354483161,5.8741,170.2,170.15,5.8755]
[1747354483349,5.8741,170.2,170.16,63.16]
[1747354483553,7.741,170.25,170.2,5.8738]
[1747354483753,70.881,170.25,170.2,5.8738]
[1747354483965,65.0084,170.25,170.17,6.99815249]
[1747354484156,63.14,170.28,170.18,63.14]
[1747354484362,63.14,170.28,170.2,6.99815249]
[1747354484557,63.14,170.28,170.21,63.16]
[1747354484758,5.8719,170.27,170.21,63.16]
[1747354485059,63.14,170.28,170.21,63.16]
[1747354485656,126.3,170.28,170.18,72.8642]
[1747354485856,126.3,170.28,170.18,66.9895]
[1747354486258,126.3,170.28,170.19,5.8743]
[1747354486259,5.8728,170.24,170.19,5.8743]
[1747354486463,126.3,170.28,170.18,66.9895]
[1747354486859,126.3,170.28,170.18,63.16]
[1747354487363,126.3,170.28,170.18,69.0347]
[1747354487364,5.873,170.23,170.18,69.0347]
[1747354487662,63.12,170.24,170.18,63.16]
[1747354489561,1.9621,170.23,170.18,63.16]
[1747354489860,5.8744,170.19,170.18,63.16]
[1747354490060,1.9621,170.23,170.15,63.14]
[1747354490263,3.7948,170.22,170.15,63.14]
[1747354491063,507.88,170.34,170.16,63.1]
[1747354491366,1.8586,170.31,170.18,11.18097202]
[1747354491562,1.8586,170.31,170.19,63.14]
[1747354491754,63.08,170.3,170.19,63.14]
[1747354493068,5.8719,170.27,170.22,5.8734]
[1747354493462,5.8719,170.27,170.19,63.14]
[1747354493666,5.8714,170.28,170.19,63.14]
[1747354493964,63.08,170.3,170.19,63.14]
[1747354494165,63.08,170.29,170.19,63.14]
[1747354494365,5.8719,170.27,170.19,63.14]
[1747354495273,5.8721,170.26,170.19,63.14]
[1747354495467,63.08,170.29,170.19,63.14]
[1747354495668,5.8714,170.28,170.19,63.14]
[1747354495968,63.08,170.29,170.19,63.14]
[1747354496166,68.9511,170.29,170.19,63.14]
[1747354496364,68.9311,170.29,170.19,63.14]
[1747354496672,1.8586,170.31,170.21,11.18097202]
[1747354496872,63.06,170.3,170.21,11.18097202]
[1747354497170,68.9309,170.3,170.26,5.8717]
[1747354498172,5.8709,170.3,170.26,5.8717]
[1747354498866,5.871,170.29,170.25,5.8722]
[1747354499165,64.9186,170.31,170.24,63.12]
[1747354499372,5.8712,170.29,170.25,5.872]
[1747354499670,64.9186,170.31,170.24,63.12]
[1747354499973,5.8709,170.3,170.26,5.8719]
[1747354500375,67.0383,170.33,170.24,63.12]
[1747354500569,63.06,170.31,170.24,63.12]
[1747354500767,5.8708,170.3,170.26,5.8717]
[1747354501072,63.04,170.35,170.25,11.18097202]
[1747354501275,68.9089,170.35,170.3,5.8703]
[1747354501571,63.04,170.35,170.29,63.04]
[1747354501769,63.04,170.35,170.31,5.8699]
[1747354501966,63.04,170.35,170.29,63.04]
[1747354502368,66.9567,170.39,170.29,74.22097202]
[1747354502764,66.9567,170.39,170.33,5.8693]
[1747354502960,66.9567,170.39,170.29,76.12957202]
[1747354503775,66.9567,170.39,170.32,5.8697]
[1747354503969,66.9567,170.39,170.33,63.02]
[1747354504476,5.8685,170.37,170.33,63.02]
[1747354504682,66.9567,170.39,170.33,63.02]
[1747354504972,66.9567,170.39,170.29,13.08957202]
[1747354505176,66.9567,170.39,170.31,63.02]
[1747354505674,5.8683,170.37,170.31,63.02]
[1747354506077,2.007,170.39,170.31,63.02]
[1747354506375,63.02,170.4,170.31,63.02]
[1747354506569,63.02,170.43,170.33,11.18097202]
[1747354506773,1.8429,170.45,170.33,11.18097202]
[1747354506973,5.8661,170.43,170.33,11.18097202]
[1747354507279,63.02,170.46,170.4,6.97147907]
[1747354508270,3.9145,170.48,170.39,63.02]
[1747354508271,3.9145,170.48,170.43,6.97147907]
[1747354508664,3.9145,170.48,170.37,4.0031]
[1747354508868,3.9145,170.48,170.4,6.97147907]
[1747354509066,5.8665,170.42,170.38,63.0]
[1747354509470,63.0,170.44,170.38,63.0]
[1747354509675,63.0,170.44,170.34,11.15818028]
[1747354509875,63.0,170.44,170.34,63.0]
[1747354510981,5.8677,170.39,170.34,63.0]
[1747354511178,63.0,170.4,170.34,63.0]
[1747354511579,5.8686,170.36,170.34,63.0]
[1747354511782,63.0,170.4,170.34,63.0]
[1747354512981,63.0,170.45,170.34,68.869]
[1747354513181,62.98,170.44,170.34,63.0]
[1747354514082,5.8668,170.41,170.34,63.0]
[1747354514781,62.98,170.44,170.36,11.15818028]
[1747354515173,62.98,170.44,170.4,5.8669]
[1747354515377,1.9227,170.48,170.4,74.15818028]
[1747354515580,1.9227,170.48,170.4,63.0]
[1747354515781,127.964,170.47,170.29,1.9328]
[1747354515983,127.964,170.47,170.33,11.15818028]
[1747354516180,1.9223,170.46,170.33,11.15818028]
[1747354516379,5.8674,170.4,170.34,63.0]
[1747354517184,62.98,170.43,170.34,63.0]
[1747354517490,125.98,170.43,170.34,63.0]
[1747354517786,125.98,170.43,170.33,11.15818028]
[1747354517787,5.868,170.38,170.33,11.15818028]
[1747354517979,62.98,170.39,170.33,74.15818028]
[1747354518182,62.98,170.42,170.33,74.15818028]
[1747354519083,5.8678,170.39,170.33,80.02748028]
[1747354519289,62.98,170.42,170.33,11.15818028]
[1747354519489,1.8655,170.41,170.33,74.13818028]
[1747354519888,1.8655,170.41,170.33,62.98]
[1747354520486,2.0052,170.4,170.33,62.98]
[1747354521785,1.8304,170.39,170.29,15.04778028]
[1747354521990,62.96,170.38,170.31,62.98]
[1747354522894,5.8686,170.36,170.31,62.98]
[1747354523091,64.8104,170.39,170.31,62.98]
[1747354523390,62.96,170.38,170.31,74.13818028]
[1747354523597,68.8279,170.38,170.34,5.8692]
[1747354523890,68.8279,170.38,170.31,74.13818028]
[1747354523891,62.96,170.38,170.31,74.13818028]
[1747354524090,62.96,170.38,170.31,62.98]
[1747354524786,125.94,170.38,170.28,507.38]
[1747354525186,5.8693,170.34,170.29,5.8709]
[1747354525380,125.94,170.38,170.28,507.38]
[1747354526280,125.94,170.38,170.31,5.87]
[1747354526889,5.8686,170.36,170.31,5.87]
[1747354527088,125.94,170.38,170.28,507.38]
[1747354527387,5.8692,170.35,170.28,507.38]
[1747354527589,125.94,170.38,170.29,5.8709]
[1747354528195,5.8695,170.34,170.29,5.8709]
[1747354528492,62.96,170.34,170.27,62.98]
[1747354529087,5.8686,170.36,170.31,5.8702]
[1747354529289,68.8286,170.36,170.31,5.8702]
[1747354529484,5.8683,170.37,170.32,5.8697]
[1747354529688,62.96,170.36,170.3,6.97939076]
[1747354530088,5.869,170.35,170.31,5.87]
[1747354530391,62.96,170.36,170.3,6.97939076]
[1747354530588,1.8304,170.39,170.33,6.97939076]
[1747354530794,62.96,170.38,170.33,6.97939076]
[1747354531087,1.8304,170.39,170.33,6.97939076]
[1747354531293,1.8655,170.41,170.36,6.97939076]
[1747354531495,62.96,170.41,170.36,6.97939076]
[1747354531687,62.96,170.42,170.36,6.97939076]
[1747354532087,5.8669,170.41,170.37,5.868]
[1747354532889,62.96,170.42,170.37,5.868]
[1747354533094,68.8266,170.42,170.38,5.8679]
[1747354533500,5.8669,170.41,170.37,5.8682]
[1747354533791,62.96,170.42,170.34,1.8779]
[1747354533996,62.96,170.42,170.34,71.79729076]
[1747354534199,62.96,170.42,170.34,69.91939076]
[1747354535002,5.8681,170.38,170.34,69.91939076]
[1747354535296,5.8681,170.38,170.34,6.97939076]
[1747354536599,5.8681,170.38,170.34,12.84859076]
[1747354536799,62.94,170.41,170.34,6.97939076]
[1747354537898,5.8683,170.37,170.34,6.97939076]
[1747354538905,5.8686,170.36,170.33,62.94]
[1747354539092,62.94,170.41,170.32,6.97939076]
[1747354539297,127.7421,170.4,170.3,62.94]
[1747354539497,127.76,170.39,170.23,3.8617]
[1747354539697,134.73939076,170.39,170.26,62.94]
[1747354540205,127.76,170.39,170.26,62.94]
[1747354540509,127.76,170.39,170.27,5.8716]
[1747354540707,134.73939076,170.39,170.26,62.94]
[1747354541507,134.73939076,170.39,170.27,5.8716]
[1747354541716,64.82,170.39,170.28,6.97939076]
[1747354542006,62.94,170.38,170.28,6.97939076]
[1747354542408,62.94,170.38,170.26,64.7736]
[1747354542614,62.94,170.38,170.25,62.96]
[1747354543510,62.94,170.38,170.25,68.8323]
[1747354543706,64.82,170.39,170.27,6.97939076]
[1747354543908,62.94,170.37,170.27,6.97939076]
[1747354544114,62.94,170.37,170.25,62.96]
[1747354545013,5.8716,170.28,170.25,62.96]
[1747354545215,62.94,170.29,170.22,62.96]
[1747354545707,5.8719,170.27,170.22,62.96]
[1747354545913,62.94,170.29,170.24,6.97939076]
[1747354547108,62.94,170.29,170.22,62.96]
[1747354547308,5.8717,170.27,170.22,62.96]
[1747354547816,5.872,170.26,170.22,68.8334]
[1747354548005,62.94,170.29,170.21,6.97939076]
[1747354548811,62.94,170.29,170.21,12.85309076]
[1747354549013,62.94,170.29,170.19,69.93939076]
[1747354549213,62.96,170.28,170.19,69.93939076]
[1747354549405,5.8729,170.24,170.19,75.81359076]
[1747354549718,5.8729,170.24,170.19,69.93939076]
[1747354549909,5.8729,170.24,170.19,75.81369076]
[1747354550420,5.8731,170.23,170.19,69.93939076]
[1747354550720,62.94,170.25,170.19,69.93939076]
[1747354551014,5.8735,170.22,170.19,62.96]
[1747354551215,62.94,170.25,170.19,62.96]
[1747354551417,5.8727,170.24,170.19,62.96]
[1747354551605,62.94,170.25,170.19,62.96]
[1747354552118,66.7026,170.28,170.21,6.97939076]
[1747354552418,62.94,170.27,170.21,6.97939076]
[1747354552713,70.8033,170.31,170.24,6.97939076]
[1747354552915,62.94,170.3,170.23,62.98]
[1747354553118,64.933,170.31,170.26,5.8718]
[1747354553318,62.94,170.3,170.23,62.98]
[1747354554121,62.94,170.3,170.25,5.8721]
[1747354554320,62.94,170.3,170.23,62.98]
[1747354555317,5.8712,170.29,170.24,5.8725]
[1747354555522,62.94,170.3,170.2,71.93649076]
[1747354555523,125.92,170.3,170.2,69.95939076]
[1747354555721,3.8774,170.29,170.2,62.98]
[1747354556021,5.8717,170.27,170.22,5.8731]
[1747354556210,62.94,170.26,170.2,62.98]
[1747354556917,62.94,170.26,170.22,5.8731]
[1747354557125,62.94,170.26,170.2,62.98]
[1747354558119,62.94,170.26,170.22,5.8731]
[1747354558426,62.94,170.26,170.2,62.98]
[1747354559123,62.94,170.26,170.22,5.8731]
[1747354559725,125.92,170.26,170.16,62.98]
[1747354560217,125.92,170.26,170.24,5.8726]
[1747354560423,66.8574,170.29,170.2,62.98]
[1747354560724,62.94,170.29,170.2,125.92]
[1747354560922,62.94,170.29,170.28,5.8713]
[1747354561226,64.893,170.31,170.25,62.94]
[1747354561423,64.893,170.31,170.29,5.8708]
[1747354561619,64.893,170.31,170.25,62.94]
[1747354562017,62.94,170.31,170.3,5.8706]
[1747354562415,64.8265,170.36,170.25,62.94]
[1747354562619,62.94,170.35,170.31,5.8702]
[1747354562925,64.8265,170.36,170.31,5.8702]
[1747354563127,62.94,170.34,170.28,5.8713]
[1747354563827,62.94,170.34,170.29,5.8709]
[1747354564125,62.94,170.34,170.25,62.94]
[1747354564531,68.8095,170.34,170.29,5.8709]
[1747354564827,62.94,170.34,170.22,62.92]
[1747354565927,64.8265,170.36,170.23,11.1809605]
[1747354566124,68.789,170.35,170.23,11.1809605]
[1747354566323,5.869,170.35,170.23,11.1809605]
[1747354566519,3.9576,170.37,170.27,11.1809605]
[1747354566726,62.92,170.37,170.34,5.869]
[1747354566926,62.92,170.37,170.28,66.7686]
[1747354567126,62.94,170.4,170.28,66.7686]
[1747354567327,62.92,170.39,170.28,66.7686]
[1747354568123,3.9656,170.45,170.31,11.1809605]
[1747354568318,68.7859,170.44,170.39,5.8675]
[1747354568522,62.92,170.44,170.37,62.94]
[1747354568718,3.9656,170.45,170.28,15.0095605]
[1747354568719,5.8675,170.4,170.33,5.8693]
[1747354568924,62.92,170.43,170.34,62.94]
[1747354569228,5.8669,170.41,170.34,62.94]
[1747354569429,62.92,170.43,170.34,62.94]
[1747354570332,62.92,170.43,170.35,11.1809605]
[1747354570533,5.8666,170.42,170.36,5.8684]
[1747354570733,5.8666,170.42,170.35,13.1313605]
[1747354571031,62.92,170.43,170.35,13.1313605]
[1747354571230,5.8671,170.41,170.35,19.0001605]
[1747354571430,62.92,170.43,170.35,1.9504]
[1747354571731,62.92,170.43,170.34,62.92]